{"text_format":"1","workbook":"xlsx","n_sheets":2,"sheets":["Invultemplate","Beoordeling"],"not_rendered":{"charts":0,"images":5,"macros":1,"external_links":0,"defined_names":0,"comments":0,"pivot_tables":0},"unopened":[],"bounds":{"document_bytes":16777216,"sheet_cells":100000,"rows_first":2000,"rows_last":500,"rows_between":2000,"halvings":0,"cell_chars":16384,"cell_head_chars":4096},"cells_cut":0,"cells_raw":0,"read":"whole","date_system":"1900"}

{"sheet":"Invultemplate","index":0,"n_rows":237,"n_cols":6,"rows_kept":237,"cut":false,"hidden":false,"merged":[[53,2,53,7],[193,2,206,10],[69,2,75,10],[174,2,180,10],[5,3,5,6],[6,3,6,6],[7,3,7,6],[8,3,8,6],[36,2,48,10],[13,2,13,4],[26,5,26,10],[229,3,229,5],[230,3,230,5],[90,2,97,10],[225,3,225,5],[226,3,226,5],[109,2,116,10],[129,2,136,10],[144,2,151,10],[153,4,153,5],[158,2,158,5],[227,3,227,5],[228,3,228,5]]}
[]
[]
[null,null,"Eindrapportage Maatwerkregeling Agroprogramma"]
[null,null,"Versie juli 2026"]
[]
[null,null,"Bedrijfsnaam"]
[null,null,"Contactpersoon"]
[null,null,"Adres"]
[null,null,"Dossiernummer (SD)"]
[]
[]
[null,null,"Toelichting"]
[]
[null,null,"Gebruik dit formulier wanneer aan u subsidie is verleend op grond van de Regeling maatwerk investeringen Agroprogramma 2023 (Maatwerkregeling) en u het investeringsproject wenst vast te stellen."]
[]
[null,null,"In de eindrapportage beschrijft u:"]
[]
[null,null,"1.        Tijdlijn en omschrijving van de activiteiten"]
[null,null,"2.        Welke algemene voordelen heeft de investering opgeleverd?"]
[null,null,"3.        Op welke wijze heeft de investering bijgedragen om weer verder te gaan (perspectief/toekomstbestendigheid)?"]
[null,null,"4.        Welke stilstand is weggenomen?"]
[null,null,"5.        Is het doel van de oorspronkelijke aanvraag, en daarmee van de subsidie, gerealiseerd?"]
[null,null,"6.        Opbouw gerealiseerde kosten",null,null,"Wat moet u indienen?"]
[null,null,"7.        Toelichting op verantwoording van uitgaven",null,null,"· Foto's van het uitgevoerde project"]
[null,null,"8.        Ondertekening en verzoek vaststelling subsidie",null,null,"· Volledig ingevulde eindrapportage Exceltemplate;"]
[null,null,"9.        Als bijlage voegt u de controleverklaring accountant bij (subsidie >€ 125.000)",null,null,"· Een controleverklaring van uw accountant (in een aparte bijlage bij uw email)."]
[null,null,null,null,null,"LET OP: In de controleverklaring dient ook rekening te worden gehouden met IMG/NCG gelden die gebruikt zijn bij het investeringsproject."]
[]
[]
[null,1,"Tijdlijn van de activiteiten"]
[]
[]
[null,null,"Startdatum project"]
[null,null,"Einddatum project"]
[]
[null,null,"Belangrijke mijlpalen:"]
[]
[]
[]
[]
[]
[]
[]
[]
[]
[]
[]
[]
[]
[]
[]
[null,"1.1","Omschrijving van de uitgevoerde activiteiten"]
[]
[null,null,"Beschrijf welke activiteiten zijn uitgevoerd, in welke volgorde, door wie, en op welke locatie. Geef aan hoe de werkzaamheden zich verhouden tot de oorspronkelijke aanvraag. "]
[null,null,"Uitgevoerde investering (op volgorde)","Door wie","Op welke locatie","Verhouding van de werkzaamheden tot de oorspronkelijke aanvraag"]
[null,1]
[null,2]
[null,3]
[null,4]
[null,5]
[null,6]
[null,7]
[null,8]
[null,9]
[null,10]
[null,11]
[null,12]
[]
[null,null,"Uw toelichting:"]
[null,null,"test"]
[]
[]
[]
[]
[]
[]
[]
[]
[null,2,"Algemene voordelen van de investering"]
[]
[null,null,"Beschrijf de brede, niet-specifieke voordelen die de investering heeft"]
[null,null,"opgeleverd, zoals:"]
[null,null,"·        Verbeterde bedrijfsvoering"]
[null,null,"·        Verhoogde efficiëntie"]
[null,null,"·        Verduurzaming"]
[null,null,"·        Betere arbeidsomstandigheden"]
[null,null,"·        Vermindering van kosten"]
[null,null,"·        Versterking van de marktpositie"]
[]
[null,null,"Uw toelichting:"]
[]
[]
[]
[]
[]
[]
[]
[]
[]
[]
[null,3,"Bijdrage aan perspectief/toekomstbestendigheid"]
[]
[null,null,"Geef aan hoe de investering heeft bijgedragen aan:"]
[null,null,"·        Mogelijkheden voor verdere ontwikkeling"]
[null,null,"·        Innovatie"]
[null,null,"·        Nieuwe afzetkanalen"]
[null,null,"·        Robuustheid richting toekomst (bijv. klimaat, regelgeving, marktontwikkelingen)"]
[]
[null,null,"Uw toelichting:"]
[]
[]
[]
[]
[]
[]
[]
[]
[]
[]
[null,4,"Weggenomen stilstand"]
[]
[null,null,"Beschrijf welke stagnatie of knelpunten vóór de investering aanwezig waren, zoals:"]
[null,null,"·        Productiestop"]
[null,null,"·        Technische problemen"]
[null,null,"·        Tekort aan capaciteit"]
[null,null,"·        Onveilige of verouderde situaties"]
[null,null,"·        Administratieve of logistieke beperkingen"]
[]
[null,null,"Uw toelichting:"]
[]
[]
[]
[]
[]
[]
[]
[]
[]
[]
[null,5,"Is het doel van de oorspronkelijke aanvraag, en daarmee van de subsidie, gerealiseerd?"]
[]
[null,null,"Herhaal kort het oorspronkelijke doel, beschrijf wat de daadwerkelijke realisatie is en geef een eindconclusie (kwalificaties: volledig gerealiseerd, gedeeltelijk gerealiseerd, niet gerealiseerd). Verklaar de eventuele afwijkingen."]
[]
[null,null,"Uw toelichting:"]
[]
[]
[]
[]
[]
[]
[]
[]
[]
[null,null,"Eindconclusie",null,"← selecteer uit het dropdown menu"]
[]
[]
[null,6,"Opbouw gerealiseerde kosten"]
[]
[null,null,"Geef een overzicht van de kosten zoals deze daadwerkelijk zijn gemaakt."]
[null,null,"Omschrijving type investering","Subsidiabele kosten","Uiteindelijk gerealiseerd investering (geldbedrag en uw toelichting in het tekstvak hieronder)","Verschil ten opzichte van subsidieaanvraag                                                     (indien van toepassing)"]
[null,1]
[null,2]
[null,3]
[null,4]
[null,5]
[null,6]
[null,7]
[null,8]
[null,9]
[null,10]
[null,11]
[null,12]
[]
[null,null,"Uw toelichting:"]
[]
[]
[]
[]
[]
[]
[]
[]
[]
[null,7,"Toelichting op de verantwoording van uitgaven"]
[]
[null,null,"Beschrijf:"]
[null,null,"·        Hoe de betalingen zijn gedaan (bankafschriften, betaalbewijzen)"]
[null,null,"·        Dat de facturen betrekking hebben op de goedgekeurde activiteiten"]
[null,null,"·        Eventuele afwijkingen t.o.v. de oorspronkelijke begroting (met motivatie)"]
[null,null,"·        Of alle investeringen binnen de projectperiode zijn afgerond"]
[null,null,"·        Of alle kosten aantoonbaar en controleerbaar zijn"]
[]
[null,null,"Uw toelichting:"]
[]
[]
[]
[]
[]
[]
[]
[]
[]
[]
[]
[]
[]
[]
[]
[]
[null,5,"Verklaring en ondertekening"]
[]
[null,null,"Ik verklaar dat:"]
[null,null,"· alle gegevens in dit formulier en de bijlagen naar waarheid en naar beste weten zijn ingevuld;"]
[null,null,"· ik bereid ben alle gewenste informatie aan de subsidieverlener te verstrekken en mee te werken aan controles en steekproeven;"]
[null,null,"· ik ermee instem dat de provincie informatie kan opvragen bij leveranciers of dienstverleners voor verificatie;"]
[null,null,"· indien ik het verzoek namens een ondernemer indien: ik mij ervan heb overtuigd dat het verzoek en alle bijlagen correct en volledig zijn;"]
[null,null,"· ik ermee instem dat de provincie informatie kan opvragen bij het IMG, NAM, TCMG of de NCG over schademeldingen of versterking van bedrijfsgebouwen van mijn onderneming;"]
[null,null,"· ik bekend ben met de provinciale privacyverklaring;"]
[null,null,"· ik begrijp dat de provincie een integriteitsonderzoek kan starten op basis van de Wet Bibob;"]
[null,null,"· ik bevoegd ben dit verzoek in te dienen;"]
[null,null,"· ik instem met registratie van mijn persoonsgegevens ter voorkoming van misbruik van subsidies;"]
[null,null,"· ik begrijp dat wordt gecontroleerd of het project voldoet aan subsidie- en staatssteunvoorwaarden;"]
[null,null,"· ik begrijp dat mijn gegevens kunnen worden gebruikt voor evaluatie van de regeling."]
[null,null,"Tevens verzoek ik u de subsidie definitief vast te stellen"]
[]
[null,null,"Naam contactpersoon"]
[null,null,"Functie contactpersoon"]
[null,null,"Telefoonnummer contactpersoon"]
[null,null,"E-mail contactpersoon"]
[null,null,"Datum indiening"]
[null,null,"Plaats"]
[]
[null,null,"U kunt uw voortgangsrapportage en eventuele wijzigingsverzoek e-mailen, onder verwijzing van uw SD-nummer, naar:"]
[]
[null,null,"subsidies@provinciegroningen.nl"]
[]
[null,null,"Na ontvangst krijgt u een bevestiging. U kunt worden gevraagd om extra informatie, zoals facturen, betalingsbewijzen of andere bewijsstukken om te controleren of de investeringen aan de voorwaarden voldoen."]

{"sheet":"Beoordeling","index":1,"n_rows":237,"n_cols":14,"rows_kept":237,"cut":false,"hidden":true,"merged":[[228,3,228,5],[229,3,229,5],[230,3,230,5],[209,13,210,22],[211,13,236,22],[174,2,180,10],[193,2,206,10],[225,3,225,5],[226,3,226,5],[227,3,227,5],[109,2,116,10],[129,2,136,10],[144,2,151,10],[153,4,153,5],[158,2,158,5],[8,3,8,6],[13,2,13,4],[26,5,26,10],[36,2,48,10],[53,2,53,7],[69,2,75,10],[90,2,97,10],[5,3,5,6],[6,3,6,6],[7,3,7,6],[7,13,7,22],[8,13,9,17],[8,18,9,22],[13,13,14,17],[13,18,14,22]]}
[]
[]
[null,null,"Eindrapportage Maatwerkregeling Agroprogramma"]
[null,null,"Versie juli 2026"]
[]
[null,null,"Bedrijfsnaam",{"$f":"IF(Invultemplate!D6=\"\",\"\",Invultemplate!D6)","v":""}]
[null,null,"Contactpersoon",{"$f":"IF(Invultemplate!D7=\"\",\"\",Invultemplate!D7)","v":""}]
[null,null,"Adres",{"$f":"IF(Invultemplate!D8=\"\",\"\",Invultemplate!D8)","v":""},null,null,null,null,null,null,null,null,null,"Beoordeling"]
[null,null,"Dossiernummer (SD)",{"$f":"IF(Invultemplate!D9=\"\",\"\",Invultemplate!D9)","v":""},null,null,null,null,null,null,null,null,null,"Beoordelaar:"]
[]
[]
[null,null,"Toelichting"]
[]
[null,null,"Gebruik dit formulier wanneer aan u subsidie is verleend op grond van de Regeling maatwerk investeringen Agroprogramma 2023 (Maatwerkregeling) en u het investeringsproject wenst vast te stellen.",null,null,null,null,null,null,null,null,null,null,"Datum beoordeling "]
[]
[null,null,"In de eindrapportage beschrijft u:"]
[]
[null,null,"1.        Tijdlijn en omschrijving van de activiteiten"]
[null,null,"2.        Welke algemene voordelen heeft de investering opgeleverd?"]
[null,null,"3.        Op welke wijze heeft de investering bijgedragen om weer verder te gaan (perspectief/toekomstbestendigheid)?"]
[null,null,"4.        Welke stilstand is weggenomen?"]
[null,null,"5.        Is het doel van de oorspronkelijke aanvraag, en daarmee van de subsidie, gerealiseerd?"]
[null,null,"6.        Opbouw gerealiseerde kosten",null,null,"Wat moet u indienen?"]
[null,null,"7.        Toelichting op verantwoording van uitgaven",null,null,"· Foto's van het uitgevoerde project"]
[null,null,"8.        Ondertekening en verzoek vaststelling subsidie",null,null,"· Volledig ingevulde eindrapportage Exceltemplate;"]
[null,null,"9.        Als bijlage voegt u de controleverklaring accountant bij (subsidie >€ 125.000)",null,null,"· Een controleverklaring van uw accountant (in een aparte bijlage bij uw email)."]
[null,null,null,null,null,"LET OP: In de controleverklaring dient ook rekening te worden gehouden met IMG/NCG gelden die gebruikt zijn bij het investeringsproject."]
[]
[]
[null,1,"Tijdlijn van de activiteiten"]
[]
[]
[null,null,"Startdatum project",{"$f":"IF(Invultemplate!D33=\"\",\"\",Invultemplate!D33)","v":""}]
[null,null,"Einddatum project",{"$f":"IF(Invultemplate!D34=\"\",\"\",Invultemplate!D34)","v":""}]
[]
[null,null,"Belangrijke mijlpalen:"]
[null,null,{"$f":"IF(Invultemplate!C37=\"\",\"\",Invultemplate!C37)","v":""}]
[]
[]
[]
[]
[]
[]
[]
[]
[]
[]
[]
[]
[]
[]
[null,"1.1","Omschrijving van de uitgevoerde activiteiten"]
[]
[null,null,"Beschrijf welke activiteiten zijn uitgevoerd, in welke volgorde, door wie, en op welke locatie. Geef aan hoe de werkzaamheden zich verhouden tot de oorspronkelijke aanvraag. "]
[null,null,"Uitgevoerde investering (op volgorde)","Door wie","Op welke locatie","Verhouding van de werkzaamheden tot de oorspronkelijke aanvraag"]
[null,1,{"$f":"IF(Invultemplate!C56=\"\",\"\",Invultemplate!C56)","v":""},{"$f":"IF(Invultemplate!D56=\"\",\"\",Invultemplate!D56)","v":""},{"$f":"IF(Invultemplate!E56=\"\",\"\",Invultemplate!E56)","v":""},{"$f":"IF(Invultemplate!F56=\"\",\"\",Invultemplate!F56)","v":""}]
[null,2,{"$f":"IF(Invultemplate!C57=\"\",\"\",Invultemplate!C57)","v":""},{"$f":"IF(Invultemplate!D57=\"\",\"\",Invultemplate!D57)","v":""},{"$f":"IF(Invultemplate!E57=\"\",\"\",Invultemplate!E57)","v":""},{"$f":"IF(Invultemplate!F57=\"\",\"\",Invultemplate!F57)","v":""}]
[null,3,{"$f":"IF(Invultemplate!C58=\"\",\"\",Invultemplate!C58)","v":""},{"$f":"IF(Invultemplate!D58=\"\",\"\",Invultemplate!D58)","v":""},{"$f":"IF(Invultemplate!E58=\"\",\"\",Invultemplate!E58)","v":""},{"$f":"IF(Invultemplate!F58=\"\",\"\",Invultemplate!F58)","v":""}]
[null,4,{"$f":"IF(Invultemplate!C59=\"\",\"\",Invultemplate!C59)","v":""},{"$f":"IF(Invultemplate!D59=\"\",\"\",Invultemplate!D59)","v":""},{"$f":"IF(Invultemplate!E59=\"\",\"\",Invultemplate!E59)","v":""},{"$f":"IF(Invultemplate!F59=\"\",\"\",Invultemplate!F59)","v":""}]
[null,5,{"$f":"IF(Invultemplate!C60=\"\",\"\",Invultemplate!C60)","v":""},{"$f":"IF(Invultemplate!D60=\"\",\"\",Invultemplate!D60)","v":""},{"$f":"IF(Invultemplate!E60=\"\",\"\",Invultemplate!E60)","v":""},{"$f":"IF(Invultemplate!F60=\"\",\"\",Invultemplate!F60)","v":""}]
[null,6,{"$f":"IF(Invultemplate!C61=\"\",\"\",Invultemplate!C61)","v":""},{"$f":"IF(Invultemplate!D61=\"\",\"\",Invultemplate!D61)","v":""},{"$f":"IF(Invultemplate!E61=\"\",\"\",Invultemplate!E61)","v":""},{"$f":"IF(Invultemplate!F61=\"\",\"\",Invultemplate!F61)","v":""}]
[null,7,{"$f":"IF(Invultemplate!C62=\"\",\"\",Invultemplate!C62)","v":""},{"$f":"IF(Invultemplate!D62=\"\",\"\",Invultemplate!D62)","v":""},{"$f":"IF(Invultemplate!E62=\"\",\"\",Invultemplate!E62)","v":""},{"$f":"IF(Invultemplate!F62=\"\",\"\",Invultemplate!F62)","v":""}]
[null,8,{"$f":"IF(Invultemplate!C63=\"\",\"\",Invultemplate!C63)","v":""},{"$f":"IF(Invultemplate!D63=\"\",\"\",Invultemplate!D63)","v":""},{"$f":"IF(Invultemplate!E63=\"\",\"\",Invultemplate!E63)","v":""},{"$f":"IF(Invultemplate!F63=\"\",\"\",Invultemplate!F63)","v":""}]
[null,9,{"$f":"IF(Invultemplate!C64=\"\",\"\",Invultemplate!C64)","v":""},{"$f":"IF(Invultemplate!D64=\"\",\"\",Invultemplate!D64)","v":""},{"$f":"IF(Invultemplate!E64=\"\",\"\",Invultemplate!E64)","v":""},{"$f":"IF(Invultemplate!F64=\"\",\"\",Invultemplate!F64)","v":""}]
[null,10,{"$f":"IF(Invultemplate!C65=\"\",\"\",Invultemplate!C65)","v":""},{"$f":"IF(Invultemplate!D65=\"\",\"\",Invultemplate!D65)","v":""},{"$f":"IF(Invultemplate!E65=\"\",\"\",Invultemplate!E65)","v":""},{"$f":"IF(Invultemplate!F65=\"\",\"\",Invultemplate!F65)","v":""}]
[null,11,{"$f":"IF(Invultemplate!C66=\"\",\"\",Invultemplate!C66)","v":""},{"$f":"IF(Invultemplate!D66=\"\",\"\",Invultemplate!D66)","v":""},{"$f":"IF(Invultemplate!E66=\"\",\"\",Invultemplate!E66)","v":""},{"$f":"IF(Invultemplate!F66=\"\",\"\",Invultemplate!F66)","v":""}]
[null,12,{"$f":"IF(Invultemplate!C67=\"\",\"\",Invultemplate!C67)","v":""},{"$f":"IF(Invultemplate!D67=\"\",\"\",Invultemplate!D67)","v":""},{"$f":"IF(Invultemplate!E67=\"\",\"\",Invultemplate!E67)","v":""},{"$f":"IF(Invultemplate!F67=\"\",\"\",Invultemplate!F67)","v":""}]
[]
[null,null,"Uw toelichting:"]
[null,null,{"$f":"IF(Invultemplate!C70=\"\",\"\",Invultemplate!C70)","v":"test"}]
[]
[]
[]
[]
[]
[]
[]
[]
[null,2,"Algemene voordelen van de investering"]
[]
[null,null,"Beschrijf de brede, niet-specifieke voordelen die de investering heeft"]
[null,null,"opgeleverd, zoals:"]
[null,null,"·        Verbeterde bedrijfsvoering"]
[null,null,"·        Verhoogde efficiëntie"]
[null,null,"·        Verduurzaming"]
[null,null,"·        Betere arbeidsomstandigheden"]
[null,null,"·        Vermindering van kosten"]
[null,null,"·        Versterking van de marktpositie"]
[]
[null,null,"Uw toelichting:"]
[null,null,{"$f":"IF(Invultemplate!C91=\"\",\"\",Invultemplate!C91)","v":""}]
[]
[]
[]
[]
[]
[]
[]
[]
[]
[null,3,"Bijdrage aan perspectief/toekomstbestendigheid"]
[]
[null,null,"Geef aan hoe de investering heeft bijgedragen aan:"]
[null,null,"·        Mogelijkheden voor verdere ontwikkeling"]
[null,null,"·        Innovatie"]
[null,null,"·        Nieuwe afzetkanalen"]
[null,null,"·        Robuustheid richting toekomst (bijv. klimaat, regelgeving, marktontwikkelingen)"]
[]
[null,null,"Uw toelichting:"]
[null,null,{"$f":"IF(Invultemplate!C110=\"\",\"\",Invultemplate!C110)","v":""}]
[]
[]
[]
[]
[]
[]
[]
[]
[]
[null,4,"Weggenomen stilstand"]
[]
[null,null,"Beschrijf welke stagnatie of knelpunten vóór de investering aanwezig waren, zoals:"]
[null,null,"·        Productiestop"]
[null,null,"·        Technische problemen"]
[null,null,"·        Tekort aan capaciteit"]
[null,null,"·        Onveilige of verouderde situaties"]
[null,null,"·        Administratieve of logistieke beperkingen"]
[]
[null,null,"Uw toelichting:"]
[null,null,{"$f":"IF(Invultemplate!C130=\"\",\"\",Invultemplate!C130)","v":""}]
[]
[]
[]
[]
[]
[]
[]
[]
[]
[null,5,"Is het doel van de oorspronkelijke aanvraag, en daarmee van de subsidie, gerealiseerd?"]
[]
[null,null,"Herhaal kort het oorspronkelijke doel, beschrijf wat de daadwerkelijke realisatie is en geef een eindconclusie (kwalificaties: volledig gerealiseerd, gedeeltelijk gerealiseerd, niet gerealiseerd). Verklaar de eventuele afwijkingen."]
[]
[null,null,"Uw toelichting:"]
[null,null,{"$f":"IF(Invultemplate!C145=\"\",\"\",Invultemplate!C145)","v":""}]
[]
[]
[]
[]
[]
[]
[]
[]
[null,null,"Eindconclusie",{"$f":"IF(Invultemplate!D154=\"\",\"\",Invultemplate!D154)","v":""},"← selecteer uit het dropdown menu"]
[]
[]
[null,6,"Opbouw gerealiseerde kosten"]
[]
[null,null,"Geef een overzicht van de kosten zoals deze daadwerkelijk zijn gemaakt."]
[null,null,"Omschrijving type investering","Subsidiabele kosten","Uiteindelijk gerealiseerd investering (geldbedrag en uw toelichting in het tekstvak hieronder)","Verschil ten opzichte van subsidieaanvraag                                                     (indien van toepassing)"]
[null,1,{"$f":"IF(Invultemplate!C161=\"\",\"\",Invultemplate!C161)","v":""},{"$f":"IF(Invultemplate!D161=\"\",\"\",Invultemplate!D161)","v":""},{"$f":"IF(Invultemplate!E161=\"\",\"\",Invultemplate!E161)","v":""},{"$f":"IF(Invultemplate!F161=\"\",\"\",Invultemplate!F161)","v":""}]
[null,2,{"$f":"IF(Invultemplate!C162=\"\",\"\",Invultemplate!C162)","v":""},{"$f":"IF(Invultemplate!D162=\"\",\"\",Invultemplate!D162)","v":""},{"$f":"IF(Invultemplate!E162=\"\",\"\",Invultemplate!E162)","v":""},{"$f":"IF(Invultemplate!F162=\"\",\"\",Invultemplate!F162)","v":""}]
[null,3,{"$f":"IF(Invultemplate!C163=\"\",\"\",Invultemplate!C163)","v":""},{"$f":"IF(Invultemplate!D163=\"\",\"\",Invultemplate!D163)","v":""},{"$f":"IF(Invultemplate!E163=\"\",\"\",Invultemplate!E163)","v":""},{"$f":"IF(Invultemplate!F163=\"\",\"\",Invultemplate!F163)","v":""}]
[null,4,{"$f":"IF(Invultemplate!C164=\"\",\"\",Invultemplate!C164)","v":""},{"$f":"IF(Invultemplate!D164=\"\",\"\",Invultemplate!D164)","v":""},{"$f":"IF(Invultemplate!E164=\"\",\"\",Invultemplate!E164)","v":""},{"$f":"IF(Invultemplate!F164=\"\",\"\",Invultemplate!F164)","v":""}]
[null,5,{"$f":"IF(Invultemplate!C165=\"\",\"\",Invultemplate!C165)","v":""},{"$f":"IF(Invultemplate!D165=\"\",\"\",Invultemplate!D165)","v":""},{"$f":"IF(Invultemplate!E165=\"\",\"\",Invultemplate!E165)","v":""},{"$f":"IF(Invultemplate!F165=\"\",\"\",Invultemplate!F165)","v":""}]
[null,6,{"$f":"IF(Invultemplate!C166=\"\",\"\",Invultemplate!C166)","v":""},{"$f":"IF(Invultemplate!D166=\"\",\"\",Invultemplate!D166)","v":""},{"$f":"IF(Invultemplate!E166=\"\",\"\",Invultemplate!E166)","v":""},{"$f":"IF(Invultemplate!F166=\"\",\"\",Invultemplate!F166)","v":""}]
[null,7,{"$f":"IF(Invultemplate!C167=\"\",\"\",Invultemplate!C167)","v":""},{"$f":"IF(Invultemplate!D167=\"\",\"\",Invultemplate!D167)","v":""},{"$f":"IF(Invultemplate!E167=\"\",\"\",Invultemplate!E167)","v":""},{"$f":"IF(Invultemplate!F167=\"\",\"\",Invultemplate!F167)","v":""}]
[null,8,{"$f":"IF(Invultemplate!C168=\"\",\"\",Invultemplate!C168)","v":""},{"$f":"IF(Invultemplate!D168=\"\",\"\",Invultemplate!D168)","v":""},{"$f":"IF(Invultemplate!E168=\"\",\"\",Invultemplate!E168)","v":""},{"$f":"IF(Invultemplate!F168=\"\",\"\",Invultemplate!F168)","v":""}]
[null,9,{"$f":"IF(Invultemplate!C169=\"\",\"\",Invultemplate!C169)","v":""},{"$f":"IF(Invultemplate!D169=\"\",\"\",Invultemplate!D169)","v":""},{"$f":"IF(Invultemplate!E169=\"\",\"\",Invultemplate!E169)","v":""},{"$f":"IF(Invultemplate!F169=\"\",\"\",Invultemplate!F169)","v":""}]
[null,10,{"$f":"IF(Invultemplate!C170=\"\",\"\",Invultemplate!C170)","v":""},{"$f":"IF(Invultemplate!D170=\"\",\"\",Invultemplate!D170)","v":""},{"$f":"IF(Invultemplate!E170=\"\",\"\",Invultemplate!E170)","v":""},{"$f":"IF(Invultemplate!F170=\"\",\"\",Invultemplate!F170)","v":""}]
[null,11,{"$f":"IF(Invultemplate!C171=\"\",\"\",Invultemplate!C171)","v":""},{"$f":"IF(Invultemplate!D171=\"\",\"\",Invultemplate!D171)","v":""},{"$f":"IF(Invultemplate!E171=\"\",\"\",Invultemplate!E171)","v":""},{"$f":"IF(Invultemplate!F171=\"\",\"\",Invultemplate!F171)","v":""}]
[null,12,{"$f":"IF(Invultemplate!C172=\"\",\"\",Invultemplate!C172)","v":""},{"$f":"IF(Invultemplate!D172=\"\",\"\",Invultemplate!D172)","v":""},{"$f":"IF(Invultemplate!E172=\"\",\"\",Invultemplate!E172)","v":""},{"$f":"IF(Invultemplate!F172=\"\",\"\",Invultemplate!F172)","v":""}]
[]
[null,null,"Uw toelichting:"]
[null,null,{"$f":"IF(Invultemplate!C175=\"\",\"\",Invultemplate!C175)","v":""}]
[]
[]
[]
[]
[]
[]
[]
[]
[null,7,"Toelichting op de verantwoording van uitgaven"]
[]
[null,null,"Beschrijf:"]
[null,null,"·        Hoe de betalingen zijn gedaan (bankafschriften, betaalbewijzen)"]
[null,null,"·        Dat de facturen betrekking hebben op de goedgekeurde activiteiten"]
[null,null,"·        Eventuele afwijkingen t.o.v. de oorspronkelijke begroting (met motivatie)"]
[null,null,"·        Of alle investeringen binnen de projectperiode zijn afgerond"]
[null,null,"·        Of alle kosten aantoonbaar en controleerbaar zijn"]
[]
[null,null,"Uw toelichting:"]
[null,null,{"$f":"IF(Invultemplate!C194=\"\",\"\",Invultemplate!C194)","v":""}]
[]
[]
[]
[]
[]
[]
[]
[]
[]
[]
[]
[]
[]
[]
[]
[null,5,"Verklaring en ondertekening",null,null,null,null,null,null,null,null,null,null,"Uit te voeren actie en door wie"]
[]
[null,null,"Ik verklaar dat:"]
[null,null,"· alle gegevens in dit formulier en de bijlagen naar waarheid en naar beste weten zijn ingevuld;"]
[null,null,"· ik bereid ben alle gewenste informatie aan de subsidieverlener te verstrekken en mee te werken aan controles en steekproeven;"]
[null,null,"· ik ermee instem dat de provincie informatie kan opvragen bij leveranciers of dienstverleners voor verificatie;"]
[null,null,"· indien ik het verzoek namens een ondernemer indien: ik mij ervan heb overtuigd dat het verzoek en alle bijlagen correct en volledig zijn;"]
[null,null,"· ik ermee instem dat de provincie informatie kan opvragen bij het IMG, NAM, TCMG of de NCG over schademeldingen of versterking van bedrijfsgebouwen van mijn onderneming;"]
[null,null,"· ik bekend ben met de provinciale privacyverklaring;"]
[null,null,"· ik begrijp dat de provincie een integriteitsonderzoek kan starten op basis van de Wet Bibob;"]
[null,null,"· ik bevoegd ben dit verzoek in te dienen;"]
[null,null,"· ik instem met registratie van mijn persoonsgegevens ter voorkoming van misbruik van subsidies;"]
[null,null,"· ik begrijp dat wordt gecontroleerd of het project voldoet aan subsidie- en staatssteunvoorwaarden;"]
[null,null,"· ik begrijp dat mijn gegevens kunnen worden gebruikt voor evaluatie van de regeling."]
[null,null,"Tevens verzoek ik u de subsidie definitief vast te stellen"]
[]
[null,null,"Naam contactpersoon",{"$f":"IF(Invultemplate!D226=\"\",\"\",Invultemplate!D226)","v":""}]
[null,null,"Functie contactpersoon",{"$f":"IF(Invultemplate!D227=\"\",\"\",Invultemplate!D227)","v":""}]
[null,null,"Telefoonnummer contactpersoon",{"$f":"IF(Invultemplate!D228=\"\",\"\",Invultemplate!D228)","v":""}]
[null,null,"E-mail contactpersoon",{"$f":"IF(Invultemplate!D229=\"\",\"\",Invultemplate!D229)","v":""}]
[null,null,"Datum indiening",{"$f":"IF(Invultemplate!D230=\"\",\"\",Invultemplate!D230)","v":""}]
[null,null,"Plaats",{"$f":"IF(Invultemplate!D231=\"\",\"\",Invultemplate!D231)","v":""}]
[]
[null,null,"U kunt uw voortgangsrapportage en eventuele wijzigingsverzoek e-mailen, onder verwijzing van uw SD-nummer, naar:"]
[]
[null,null,"subsidies@provinciegroningen.nl"]
[]
[null,null,"Na ontvangst krijgt u een bevestiging. U kunt worden gevraagd om extra informatie, zoals facturen, betalingsbewijzen of andere bewijsstukken om te controleren of de investeringen aan de voorwaarden voldoen."]